bitfinex-derivatives/quotes_BTCF0:USTF0_20260131
["timestamp","ask_amount","ask_price","bid_price","bid_amount"]
[1769865293222,0.012086,82866.0,82849.0,0.30218959]
[1769865293615,0.00011242,82865.0,82849.0,0.30218959]
[1769865294128,0.1951178,82864.0,82849.0,0.10876]
[1769865294518,0.1951188,82861.0,82841.0,0.19342959]
[1769865296720,0.1830318,82861.0,82841.0,0.19342959]
[1769865297030,0.1951188,82861.0,82841.0,0.19342959]
[1769865300927,0.00011242,82865.0,82850.0,0.19342959]
[1769865301335,0.00011242,82865.0,82851.0,0.19342959]
[1769865302025,0.00011242,82865.0,82850.0,0.10876]
[1769865302228,0.18314422,82865.0,82850.0,0.10876]
[1769865302522,0.19523022,82865.0,82850.0,0.10876]
[1769865302718,0.01219842,82865.0,82850.0,0.30218959]
[1769865302919,0.19523022,82865.0,82850.0,0.10876]
[1769865305834,0.00011242,82865.0,82851.0,0.19342959]
[1769865306928,0.10876,82882.0,82863.0,0.22358505]
[1769865307127,0.11740247,82881.0,82863.0,0.22358505]
[1769865307327,0.10876,82882.0,82863.0,0.22358505]
[1769865307533,0.1174188,82881.0,82863.0,0.22358505]
[1769865307838,0.10876,82882.0,82863.0,0.22358505]
[1769865308040,0.11741938,82881.0,82865.0,0.22358505]
[1769865308241,0.10876,82882.0,82865.0,0.22358505]
[1769865308434,0.11744373,82881.0,82865.0,0.22358505]
[1769865308733,0.11744373,82881.0,82856.0,0.41456]
[1769865308734,0.20957677,82881.0,82860.0,0.23567205]
[1769865309532,0.10976,82882.0,82860.0,0.23567205]
[1769865309733,0.11746514,82881.0,82864.0,0.22358505]
[1769865310231,0.10876,82882.0,82864.0,0.22358505]
[1769865310430,0.31833677,82882.0,82864.0,0.22358505]
[1769865311437,0.10876,82882.0,82864.0,0.22358505]
[1769865311635,0.10876,82882.0,82866.0,0.22358505]
[1769865311830,0.10876,82882.0,82856.0,0.41456]
[1769865311831,0.10876,82882.0,82868.0,0.22358505]
[1769865312032,0.11745869,82881.0,82868.0,0.22358505]
[1769865312337,0.10876,82882.0,82868.0,0.22358505]
[1769865312534,0.1174844,82881.0,82868.0,0.22358505]
[1769865312740,0.012081,82897.0,82877.0,0.22358505]
[1769865312943,0.11749458,82896.0,82877.0,0.22358505]
[1769865313149,0.11749458,82895.0,82877.0,0.22358505]
[1769865313341,0.11749458,82894.0,82879.0,0.22358505]
[1769865313639,0.012081,82898.0,82879.0,0.22358505]
[1769865313831,0.11751848,82897.0,82879.0,0.22358505]
[1769865314032,0.11751848,82896.0,82879.0,0.22358505]
[1769865314236,0.11751848,82895.0,82879.0,0.22358505]
[1769865314437,0.11751848,82894.0,82879.0,0.22358505]
[1769865314636,0.012081,82898.0,82879.0,0.22358505]
[1769865314838,0.11753602,82897.0,82879.0,0.22358505]
[1769865315135,0.11753602,82897.0,82870.0,0.10876]
[1769865315136,0.20957677,82895.0,82870.0,0.10876]
[1769865315436,0.20957677,82893.0,82870.0,0.10876]
[1769865315637,0.20957677,82891.0,82870.0,0.10876]
[1769865315836,0.20957677,82889.0,82870.0,0.10876]
[1769865316037,0.012084,82880.0,82860.0,0.65066505]
[1769865317134,0.11762702,82879.0,82860.0,0.65066505]
[1769865317334,0.012084,82880.0,82860.0,0.65066505]
[1769865317534,0.11763413,82879.0,82860.0,0.65066505]
[1769865317739,0.012084,82880.0,82860.0,0.65066505]
[1769865318039,0.11763437,82879.0,82860.0,0.65066505]
[1769865318241,0.012084,82880.0,82860.0,0.65066505]
[1769865318440,0.20957677,82874.0,82855.0,0.012087]
[1769865318736,0.20957677,82872.0,82851.0,0.012088]
[1769865318941,0.20957677,82870.0,82849.0,0.10876]
[1769865319536,0.20957677,82868.0,82849.0,0.10876]
[1769865320141,0.33934087,82867.0,82849.0,0.10876]
[1769865320335,0.20957677,82865.0,82849.0,0.10876]
[1769865320532,0.1176842,82864.0,82849.0,0.10876]
[1769865320734,0.10876,82863.0,82849.0,0.10876]
[1769865321748,0.20957677,82862.0,82841.0,0.012089]
[1769865322140,0.012086,82864.0,82841.0,0.23567405]
[1769865322434,0.32726162,82863.0,82841.0,0.23567405]
[1769865322637,0.11768485,82862.0,82841.0,0.23567405]
[1769865322842,0.20957677,82863.0,82841.0,0.23567405]
[1769865323443,0.10876,82862.0,82841.0,0.23567405]
[1769865323744,0.09676,82862.0,82841.0,0.23567405]
[1769865325138,0.012087,82861.0,82841.0,0.23567405]
[1769865328349,0.09676,82862.0,82849.0,0.22358505]
[1769865330335,0.09676,82862.0,82851.0,0.22358505]
[1769865330542,0.012085,82871.0,82853.0,0.22358505]
[1769865330741,0.10876,82876.0,82855.0,0.22358505]
[1769865330941,0.11792417,82875.0,82860.0,0.22358505]
[1769865331144,0.120844,82876.0,82860.0,0.22358505]
[1769865331350,0.11792171,82875.0,82860.0,0.22358505]
[1769865331543,0.10876,82876.0,82862.0,0.22358505]
[1769865332242,0.10876,82888.0,82866.0,0.22358505]
[1769865332446,0.10876,82888.0,82863.0,0.31836]
[1769865332447,0.012083,82886.0,82868.0,0.22358505]
[1769865332648,0.012083,82884.0,82868.0,0.22358505]
[1769865334351,0.120843,82888.0,82868.0,0.22358505]
[1769865334553,0.11794093,82887.0,82868.0,0.22358505]
[1769865334748,0.11794093,82886.0,82868.0,0.22358505]
[1769865334949,0.120843,82888.0,82868.0,0.22358505]
[1769865335151,0.11794081,82887.0,82868.0,0.22358505]
[1769865335350,0.120843,82888.0,82868.0,0.22358505]
[1769865335351,0.11794081,82886.0,82868.0,0.22358505]
[1769865335550,0.120843,82888.0,82868.0,0.22358505]
[1769865335751,0.11793673,82887.0,82868.0,0.22358505]
[1769865336054,0.11793673,82886.0,82868.0,0.22358505]
[1769865336253,0.120843,82888.0,82868.0,0.22358505]
[1769865336448,0.11793481,82887.0,82868.0,0.22358505]
[1769865336652,0.120843,82888.0,82868.0,0.22358505]
[1769865336653,0.11793481,82886.0,82868.0,0.22358505]
[1769865336854,0.120843,82888.0,82868.0,0.22358505]
[1769865337052,0.11793461,82887.0,82868.0,0.22358505]
[1769865337252,0.120843,82888.0,82868.0,0.22358505]
[1769865337457,0.11792682,82887.0,82868.0,0.22358505]
[1769865337659,0.120843,82888.0,82868.0,0.22358505]
[1769865337861,0.11792681,82887.0,82868.0,0.22358505]
[1769865338161,0.120843,82888.0,82868.0,0.22358505]
[1769865338357,0.11791982,82887.0,82868.0,0.22358505]
[1769865338553,0.120843,82888.0,82868.0,0.22358505]
[1769865338753,0.11791978,82887.0,82868.0,0.22358505]
[1769865338955,0.120843,82888.0,82868.0,0.22358505]
[1769865339158,0.11791983,82887.0,82868.0,0.22358505]
[1769865339358,0.120843,82888.0,82868.0,0.22358505]
[1769865339557,0.11791311,82887.0,82868.0,0.22358505]
[1769865339853,0.012083,82885.0,82868.0,0.22358505]
[1769865340058,0.22531162,82883.0,82863.0,0.31836]
[1769865340360,0.012084,82880.0,82863.0,0.54592241]
[1769865340760,0.012084,82880.0,82864.0,0.22756241]
[1769865340962,0.22531162,82883.0,82864.0,0.22756241]
[1769865341553,0.22531162,82883.0,82866.0,0.22756241]
[1769865342658,0.120843,82888.0,82866.0,0.23964841]
[1769865342864,0.012083,82886.0,82866.0,0.23964841]
[1769865343064,0.11791277,82885.0,82866.0,0.23964841]
[1769865343259,0.012083,82886.0,82866.0,0.23964841]
[1769865343562,0.11792062,82885.0,82866.0,0.23964841]
[1769865343762,0.012083,82884.0,82866.0,0.23964841]
[1769865344864,0.012083,82887.0,82866.0,0.23964841]
[1769865345063,0.10876,82888.0,82875.0,0.22756241]
[1769865345562,0.10876,82888.0,82877.0,0.22756241]
[1769865348365,0.10876,82898.0,82879.0,0.22756241]
[1769865348562,0.11787213,82897.0,82879.0,0.22756241]
[1769865348864,0.11787213,82896.0,82881.0,0.22756241]
[1769865349074,0.10876,82898.0,82881.0,0.22756241]
[1769865349262,0.11787726,82897.0,82881.0,0.22756241]
[1769865349462,0.11787726,82896.0,82881.0,0.22756241]
[1769865349663,0.10876,82898.0,82881.0,0.22756241]
[1769865349969,0.23889391,82896.0,82877.0,0.012084]
[1769865350668,0.23889391,82896.0,82875.0,0.64624241]
[1769865351656,0.23889391,82896.0,82876.0,0.23964641]
[1769865352870,0.11786017,82895.0,82876.0,0.23964641]
[1769865353169,0.11786017,82894.0,82876.0,0.23964641]
[1769865353371,0.11786017,82893.0,82876.0,0.23964641]
[1769865353570,0.23889391,82896.0,82876.0,0.23964641]
[1769865353762,0.1178705,82895.0,82876.0,0.23964641]
[1769865353963,0.1178705,82894.0,82876.0,0.23964641]
[1769865354164,0.1178705,82893.0,82876.0,0.23964641]
[1769865354373,0.1178705,82892.0,82876.0,0.23964641]
[1769865354573,0.23889391,82895.0,82876.0,0.23964641]
[1769865354765,0.11788543,82894.0,82876.0,0.23964641]
[1769865354961,0.11788543,82893.0,82876.0,0.23964641]
[1769865355160,0.11788543,82892.0,82876.0,0.23964641]
[1769865355371,0.23889391,82895.0,82876.0,0.23964641]
[1769865355667,0.1179056,82894.0,82876.0,0.23964641]
[1769865355864,0.1179056,82893.0,82876.0,0.23964641]
[1769865356068,0.1179056,82892.0,82876.0,0.23964641]
[1769865356269,0.11793206,82891.0,82876.0,0.23964641]
[1769865356573,0.23889391,82895.0,82876.0,0.23964641]
[1769865356773,0.11793201,82894.0,82876.0,0.23964641]
[1769865356969,0.11793201,82893.0,82876.0,0.23964641]
[1769865357166,0.11793201,82892.0,82876.0,0.23964641]
[1769865357366,0.11793201,82891.0,82876.0,0.23964641]
[1769865357570,0.10876,82898.0,82876.0,0.23964641]
[1769865357771,0.11794813,82897.0,82876.0,0.23964641]
[1769865357972,0.11794813,82896.0,82876.0,0.23964641]
[1769865358185,0.11794813,82895.0,82876.0,0.23964641]
[1769865358475,0.11794813,82894.0,82876.0,0.23964641]
[1769865358681,0.11794813,82893.0,82876.0,0.23964641]
[1769865358877,0.11794813,82892.0,82876.0,0.23964641]
[1769865359076,0.11794813,82891.0,82876.0,0.23964641]
[1769865359269,0.11794813,82890.0,82876.0,0.23964641]
[1769865359470,0.11794813,82889.0,82876.0,0.23964641]
[1769865359673,0.23889391,82897.0,82876.0,0.23964641]
[1769865359978,0.11802938,82896.0,82883.0,0.22756241]
[1769865360170,0.11802938,82895.0,82883.0,0.22756241]
[1769865360371,0.11802938,82894.0,82883.0,0.22756241]
[1769865360570,0.11802938,82893.0,82883.0,0.22756241]
[1769865360776,0.11802938,82892.0,82883.0,0.22756241]
[1769865361078,0.23889391,82905.0,82883.0,0.22756241]
[1769865361270,0.23889391,82903.0,82883.0,0.22756241]
[1769865361470,0.35696519,82902.0,82885.0,0.012083]
[1769865361670,0.35696519,82901.0,82883.0,0.22756241]
[1769865361867,0.23889391,82899.0,82883.0,0.22756241]
[1769865362073,0.11807128,82898.0,82883.0,0.22756241]
[1769865364082,0.23889391,82897.0,82879.0,0.23964641]
[1769865364282,0.23889391,82895.0,82879.0,0.23964641]
[1769865364878,0.23889391,82895.0,82879.0,0.012084]
[1769865365080,0.23889391,82893.0,82872.0,0.10876]
[1769865365381,0.23889391,82891.0,82872.0,0.10876]
[1769865365581,0.23889391,82889.0,82872.0,0.10876]
[1769865365783,0.23889391,82887.0,82872.0,0.10876]
[1769865366482,0.23889391,82885.0,82872.0,0.10876]
[1769865366676,0.23889391,82883.0,82872.0,0.10876]
[1769865366875,0.23889391,82883.0,82866.0,0.012086]
[1769865367077,0.25718025,82881.0,82864.0,0.4214]
[1769865367984,0.25718025,82881.0,82862.0,0.120846]
[1769865368580,0.25718025,82879.0,82862.0,0.120846]
[1769865370582,0.36594025,82885.0,82866.0,0.25704466]
[1769865370783,0.1181023,82884.0,82866.0,0.25704466]
[1769865370982,0.1181023,82883.0,82868.0,0.25704466]
[1769865371288,0.1181023,82882.0,82868.0,0.25704466]
[1769865371479,0.26926325,82890.0,82868.0,0.25704466]
[1769865371684,0.25718025,82884.0,82866.0,0.012086]
[1769865371989,0.25718025,82882.0,82866.0,0.012086]
[1769865372188,0.001,82879.0,82866.0,0.012086]
[1769865372890,0.25718025,82881.0,82866.0,0.012086]
[1769865373994,0.25718025,82881.0,82864.0,0.36580466]
[1769865374183,0.25718025,82881.0,82864.0,0.10876]
[1769865374582,0.10876,82889.0,82865.0,0.25704466]
[1769865374787,0.25718025,82887.0,82865.0,0.26913066]
[1769865374983,0.11809519,82886.0,82870.0,0.25704466]
[1769865375187,0.10876,82888.0,82872.0,0.25704466]
[1769865375382,0.1180936,82887.0,82872.0,0.25704466]
[1769865375693,0.1180936,82886.0,82872.0,0.25704466]
[1769865375887,0.10876,82888.0,82872.0,0.25704466]
[1769865376191,0.11809565,82887.0,82873.0,0.26912966]
[1769865376387,0.012081,82899.0,82873.0,0.26912966]
[1769865376388,0.11809565,82886.0,82873.0,0.26912966]
[1769865376596,0.10876,82891.0,82873.0,0.26912966]
[1769865376795,0.11809971,82890.0,82873.0,0.26912966]
[1769865377094,0.11809971,82889.0,82877.0,0.25704466]
[1769865377295,0.10876,82895.0,82877.0,0.25704466]
[1769865377493,0.11811514,82894.0,82877.0,0.25704466]
[1769865377690,0.11811514,82893.0,82877.0,0.25704466]
[1769865377889,0.11811514,82892.0,82877.0,0.25704466]
[1769865378097,0.11811514,82891.0,82878.0,0.26912866]
[1769865378290,0.11811514,82890.0,82878.0,0.26912866]
[1769865378489,0.10876,82896.0,82878.0,0.26912866]
[1769865378692,0.11812171,82895.0,82878.0,0.26912866]
[1769865378886,0.11812171,82894.0,82878.0,0.26912866]
[1769865379089,0.11812171,82893.0,82878.0,0.26912866]
[1769865379287,0.11812171,82892.0,82878.0,0.25704466]
[1769865379586,0.11812171,82891.0,82878.0,0.25704466]
[1769865379793,0.11812171,82890.0,82878.0,0.25704466]
[1769865379994,0.25718025,82895.0,82878.0,0.25704466]
[1769865380294,0.1181234,82894.0,82878.0,0.25704466]
[1769865380593,0.1181234,82893.0,82878.0,0.25704466]
[1769865380895,0.1181234,82892.0,82878.0,0.25704466]
[1769865381191,0.1181234,82891.0,82878.0,0.25704466]
[1769865381391,0.1181234,82890.0,82878.0,0.25704466]
[1769865381592,0.25718025,82898.0,82878.0,0.25704466]
[1769865381788,0.11812738,82897.0,82878.0,0.25704466]
[1769865381987,0.11812738,82896.0,82878.0,0.25704466]
[1769865382282,0.23969698,82910.0,82874.0,0.10876]
[1769865382283,0.25718025,82905.0,82887.0,0.25704466]
[1769865382486,0.11813059,82904.0,82887.0,0.25704466]
[1769865382790,0.11813059,82903.0,82887.0,0.25704466]
[1769865383097,0.11813059,82902.0,82887.0,0.25704466]
[1769865383298,0.11813059,82901.0,82887.0,0.25704466]
[1769865383598,0.11813059,82900.0,82890.0,0.20689565]
[1769865383788,0.25718025,82905.0,82890.0,0.20689565]
[1769865383789,0.11813059,82899.0,82890.0,0.20689565]
[1769865383988,0.11813059,82898.0,82890.0,0.20689565]
[1769865384187,0.25718025,82905.0,82890.0,0.20689565]
[1769865384391,0.25718025,82903.0,82890.0,0.20689565]
[1769865384595,0.37529427,82902.0,82890.0,0.20689565]
[1769865384789,0.11811402,82901.0,82890.0,0.20689565]
[1769865384989,0.11811402,82900.0,82890.0,0.20689565]
[1769865385198,0.11811402,82899.0,82890.0,0.20689565]
[1769865385394,0.11811402,82898.0,82890.0,0.20689565]
[1769865385589,0.25718025,82902.0,82890.0,0.20689565]
[1769865385790,0.11810447,82901.0,82890.0,0.20689565]
[1769865386094,0.11910447,82900.0,82890.0,0.20689565]
[1769865386397,0.11810447,82899.0,82890.0,0.20689565]
[1769865386602,0.11810447,82898.0,82890.0,0.20689565]
[1769865386901,0.001,82901.0,82890.0,0.20689565]
[1769865387198,0.11807554,82900.0,82890.0,0.20689565]
[1769865387399,0.11807554,82899.0,82890.0,0.20689565]
[1769865387591,0.001,82901.0,82890.0,0.20689565]
[1769865387803,0.11801636,82900.0,82890.0,0.20689565]
[1769865387994,0.25718025,82923.0,82903.0,0.26912466]
[1769865388208,0.25718025,82921.0,82903.0,0.26912466]
[1769865388406,0.22678834,82920.0,82903.0,0.25704466]
[1769865388695,0.11802834,82919.0,82910.0,0.20689565]
[1769865388889,0.11802834,82918.0,82910.0,0.20689565]
[1769865389090,0.11802834,82917.0,82910.0,0.20689565]
[1769865389294,0.10876,82920.0,82910.0,0.20689565]
[1769865389500,0.10876,82920.0,82890.0,0.31565565]
[1769865389501,0.25718025,82918.0,82898.0,0.012081]
[1769865391286,0.25718025,82918.0,82900.0,0.20689565]
[1769865391490,0.25718025,82918.0,82901.0,0.012081]
[1769865396192,0.10876,82920.0,82908.0,0.46394031]
[1769865396398,0.10876,82920.0,82909.0,0.25704466]
[1769865396796,0.10876,82920.0,82909.0,0.26912366]
[1769865397199,0.10525838,82920.0,82909.0,0.26912366]
[1769865400306,0.10525838,82920.0,82908.0,0.20689565]
[1769865400604,0.25086583,82919.0,82906.0,0.01208]
[1769865401799,0.25086583,82919.0,82909.0,0.20689565]
[1769865402009,0.10525838,82920.0,82909.0,0.20689565]
[1769865405301,0.35958583,82933.0,82910.0,0.27289087]
[1769865405502,0.11784865,82932.0,82913.0,0.27289087]
[1769865405698,0.35958583,82933.0,82920.0,0.20689565]
[1769865405699,0.11784865,82931.0,82920.0,0.20689565]
[1769865406012,0.11784865,82930.0,82920.0,0.20689565]
[1769865406196,0.11784865,82929.0,82920.0,0.20689565]
[1769865406403,0.11784865,82928.0,82913.0,0.27289087]
[1769865406602,0.11784865,82927.0,82913.0,0.27289087]
[1769865406798,0.11784865,82926.0,82917.0,0.20689565]
[1769865407010,0.10872,82933.0,82918.0,0.27289087]
[1769865407212,0.11788312,82932.0,82918.0,0.27289087]
[1769865407414,0.11788312,82931.0,82918.0,0.27289087]
[1769865407704,0.11788312,82930.0,82918.0,0.27289087]
[1769865407904,0.11788312,82929.0,82918.0,0.27289087]
[1769865408106,0.002,82930.0,82918.0,0.27289087]
[1769865408322,0.11792151,82929.0,82918.0,0.27289087]
[1769865408610,0.002,82930.0,82918.0,0.27289087]
[1769865408810,0.1179238,82929.0,82918.0,0.27289087]
[1769865409110,0.10872,82934.0,82918.0,0.27289087]
[1769865409412,0.11793811,82933.0,82918.0,0.27289087]
[1769865409597,0.11793811,82932.0,82918.0,0.27289087]
[1769865409801,0.11793811,82931.0,82923.0,0.012078]
[1769865410003,0.35958583,82938.0,82920.0,0.28496887]
[1769865410306,0.11793222,82937.0,82920.0,0.28496887]
[1769865410506,0.35958583,82938.0,82920.0,0.28496887]
[1769865410507,0.11793222,82936.0,82920.0,0.28496887]
[1769865410715,0.11793222,82935.0,82920.0,0.28496887]
[1769865410908,0.11793222,82934.0,82920.0,0.28496887]
[1769865411110,0.11793222,82933.0,82920.0,0.28496887]
[1769865411312,0.11793222,82932.0,82920.0,0.28496887]
[1769865411514,0.11793222,82931.0,82920.0,0.28496887]
[1769865411712,0.25086583,82937.0,82920.0,0.28496887]
[1769865411904,0.11795555,82936.0,82920.0,0.28496887]
[1769865412104,0.11795555,82935.0,82920.0,0.28496887]
[1769865412312,0.11795555,82934.0,82920.0,0.28496887]
[1769865412510,0.11795555,82933.0,82920.0,0.28496887]
[1769865412707,0.11795555,82932.0,82923.0,0.27289087]
[1769865412912,0.10872,82938.0,82923.0,0.27289087]
[1769865413115,0.11798582,82937.0,82923.0,0.27289087]
[1769865413309,0.11798582,82936.0,82923.0,0.27289087]
[1769865413517,0.10872,82936.0,82923.0,0.27289087]
[1769865414010,0.10872,82936.0,82924.0,0.012077]
[1769865414209,0.1180006,82935.0,82924.0,0.012077]
[1769865414412,0.10872,82936.0,82924.0,0.28496787]
[1769865414610,0.10872,82936.0,82926.0,0.28496787]
[1769865414817,0.10872,82936.0,82920.0,0.20689565]
[1769865414818,0.25086583,82949.0,82932.0,0.27289087]
[1769865415016,0.11800657,82948.0,82932.0,0.27289087]
[1769865415319,0.11800657,82947.0,82932.0,0.27289087]
[1769865415514,0.11800657,82946.0,82932.0,0.27289087]
[1769865415714,0.11800657,82945.0,82932.0,0.27289087]
[1769865415912,0.11800657,82944.0,82932.0,0.27289087]
[1769865416113,0.11800657,82943.0,82932.0,0.27289087]
[1769865416313,0.11800657,82942.0,82932.0,0.27289087]
[1769865416513,0.11800657,82941.0,82932.0,0.27289087]
[1769865416716,0.10872,82947.0,82932.0,0.27289087]
[1769865417020,0.11802882,82946.0,82932.0,0.27289087]
[1769865417229,0.11802882,82945.0,82932.0,0.27289087]
[1769865417412,0.11802882,82944.0,82932.0,0.27289087]
[1769865417724,0.11802882,82943.0,82932.0,0.27289087]
[1769865417911,0.11802882,82942.0,82932.0,0.27289087]
[1769865418110,0.11802882,82941.0,82932.0,0.27289087]
[1769865418312,0.10872,82947.0,82932.0,0.27289087]
[1769865418512,0.11820239,82946.0,82932.0,0.27289087]
[1769865418721,0.11820239,82945.0,82932.0,0.27289087]
[1769865418920,0.11820239,82944.0,82932.0,0.27289087]
[1769865419221,0.11820239,82943.0,82932.0,0.27289087]
[1769865419420,0.11820239,82942.0,82932.0,0.27289087]
[1769865419718,0.10872,82947.0,82932.0,0.27289087]
[1769865419920,0.11818636,82946.0,82932.0,0.27289087]
[1769865420117,0.11818636,82945.0,82932.0,0.27289087]
[1769865420320,0.11818636,82944.0,82932.0,0.27289087]
[1769865420618,0.11818636,82943.0,82932.0,0.27289087]
[1769865420819,0.11818636,82942.0,82932.0,0.27289087]
[1769865421119,0.10868,82955.0,82939.0,0.27289087]
[1769865421321,0.10868,82955.0,82940.0,0.20689565]
[1769865421618,0.25086583,82954.0,82940.0,0.20689565]
[1769865423515,0.25086583,82954.0,82930.0,0.21897265]
[1769865424316,0.25086583,82954.0,82933.0,0.012076]
[1769865425822,0.25086583,82954.0,82930.0,0.20689565]
[1769865426021,0.25086583,82954.0,82920.0,0.20689565]
[1769865426319,0.25086583,82954.0,82919.0,0.012078]
[1769865426521,0.25086583,82954.0,82912.0,0.42924]
[1769865426720,0.25086583,82954.0,82920.0,0.20689565]
[1769865427022,0.25086583,82954.0,82915.0,0.012079]
[1769865427218,0.25086583,82954.0,82915.0,0.29509611]
[1769865427820,0.26309256,82937.0,82915.0,0.29509611]
[1769865428015,0.26309256,82935.0,82915.0,0.29509611]
[1769865428417,0.26309256,82933.0,82915.0,0.29509611]
[1769865429418,0.79637256,82932.0,82915.0,0.29509611]
[1769865430725,0.53328,82932.0,82915.0,0.29509611]
[1769865430926,0.52928,82932.0,82915.0,0.29509611]
[1769865432118,0.52928,82932.0,82920.0,0.20689565]
[1769865432920,0.26309256,82931.0,82920.0,0.20689565]
[1769865433122,0.26309256,82931.0,82915.0,0.012079]
[1769865433325,0.26309256,82931.0,82911.0,0.120759]
[1769865434323,0.26309256,82931.0,82913.0,0.012079]
[1769865434522,0.26309256,82931.0,82913.0,0.29509611]
[1769865434915,0.26309256,82931.0,82915.0,0.012079]
[1769865437119,0.26309256,82931.0,82918.0,0.012078]
[1769865437415,0.26309256,82940.0,82924.0,0.012077]
[1769865437626,0.43399966,82939.0,82928.0,0.012077]
[1769865437819,0.31808,82939.0,82928.0,0.012077]
[1769865438627,0.31808,82939.0,82924.0,0.012077]
[1769865441219,0.012072,82964.0,82911.0,0.120759]
[1769865441220,0.26309256,82963.0,82928.0,0.28301711]
[1769865441536,0.012072,82964.0,82911.0,0.120759]
[1769865441537,0.26309256,82961.0,82933.0,0.012076]
[1769865441722,0.26309256,82959.0,82933.0,0.012076]
[1769865441918,0.26309256,82957.0,82933.0,0.012076]
[1769865442123,0.31808,82962.0,82933.0,0.012076]
[1769865442124,0.26309256,82955.0,82933.0,0.012076]
[1769865442324,0.26309256,82953.0,82921.0,0.39169711]
[1769865442523,0.26309256,82951.0,82925.0,0.012077]
[1769865442734,0.26309256,82949.0,82925.0,0.012077]
[1769865442933,0.26309256,82947.0,82925.0,0.012077]
[1769865443134,0.11586011,82946.0,82925.0,0.012077]
[1769865443433,0.26309256,82945.0,82925.0,0.012077]
[1769865443634,0.26309256,82943.0,82925.0,0.012077]
[1769865443835,0.37895267,82942.0,82925.0,0.012077]
[1769865444037,0.91591267,82941.0,82925.0,0.012077]
[1769865444333,0.80005256,82941.0,82925.0,0.012077]
[1769865444932,0.53696,82941.0,82928.0,0.012077]
[1769865446639,0.26309256,82940.0,82928.0,0.012077]
[1769865446941,0.26309256,82940.0,82924.0,0.012077]
[1769865447430,0.26309256,82940.0,82927.0,0.012077]
[1769865449440,0.26409256,82940.0,82927.0,0.012077]
[1769865450939,0.26309256,82938.0,82921.0,0.10868]
[1769865451151,0.26309256,82936.0,82921.0,0.10868]
[1769865452045,0.26309256,82934.0,82919.0,0.012078]
[1769865452341,0.69421256,82933.0,82919.0,0.012078]
[1769865453049,0.26309256,82932.0,82919.0,0.012078]
[1769865461049,0.26309256,82932.0,82921.0,0.012078]
[1769865462353,0.43112,82933.0,82912.0,0.43112]
[1769865462354,0.43112,82933.0,82923.0,0.012077]
[1769865462553,0.10868,82941.0,82933.0,0.012076]
[1769865465354,0.29165654,82945.0,82933.0,0.012076]
[1769865466059,0.29165654,82945.0,82935.0,0.012076]
[1769865466352,0.10868,82950.0,82924.0,0.43232]
[1769865466353,0.10868,82950.0,82939.0,0.012075]
[1769865466558,0.10868,82950.0,82941.0,0.012075]
[1769865466950,0.29165654,82954.0,82943.0,0.012075]
[1769865467154,0.11371929,82953.0,82943.0,0.012075]
[1769865467357,0.72801654,82957.0,82943.0,0.012075]
[1769865467554,0.11371148,82956.0,82943.0,0.012075]
[1769865467753,0.11371148,82955.0,82943.0,0.012075]
[1769865467961,0.11371148,82954.0,82943.0,0.012075]
[1769865468259,0.29165654,82957.0,82943.0,0.012075]
[1769865468460,0.1136919,82956.0,82943.0,0.012075]
[1769865468662,0.1136919,82955.0,82943.0,0.012075]
[1769865468860,0.29165654,82957.0,82943.0,0.012075]
[1769865469055,0.11368929,82956.0,82943.0,0.012075]
[1769865469262,0.29165654,82957.0,82943.0,0.012075]
[1769865470755,0.29165654,82957.0,82945.0,0.012074]
[1769865471263,0.29165654,82960.0,82947.0,0.012074]
[1769865472064,0.29165654,82960.0,82949.0,0.012074]
[1769865473358,0.29165654,82960.0,82946.0,0.012074]
[1769865473666,0.29165654,82960.0,82948.0,0.012074]
[1769865474361,0.29165654,82960.0,82944.0,0.012074]
[1769865477873,0.29165654,82960.0,82946.0,0.012074]
[1769865478265,0.43776,82962.0,82944.0,0.26839913]
[1769865478973,0.72941654,82962.0,82944.0,0.26839913]
[1769865479374,0.29165654,82962.0,82944.0,0.26839913]
[1769865479873,0.10868,82965.0,82944.0,0.26839913]
[1769865480074,0.10868,82965.0,82949.0,0.26839913]
[1769865480370,0.29165654,82974.0,82958.0,0.012072]
[1769865486770,0.29165654,82974.0,82960.0,0.012072]
[1769865486979,0.29165654,82974.0,82962.0,0.012072]
[1769865488678,0.29165654,82974.0,82955.0,0.29068278]
[1769865489872,0.29165654,82974.0,82956.0,0.012073]
[1769865490074,0.295966,82969.0,82954.0,0.120753]
[1769865490268,0.295966,82969.0,82956.0,0.012073]
[1769865490470,0.295966,82969.0,82954.0,0.10868]
[1769865491070,0.295966,82969.0,82955.0,0.012073]
[1769865492581,0.295966,82969.0,82955.0,0.30275578]
[1769865494981,0.295966,82969.0,82955.0,0.012073]
[1769865497881,0.295966,82969.0,82955.0,0.013073]
[1769865500280,0.295966,82969.0,82955.0,0.012073]
[1769865501285,0.295966,82969.0,82955.0,0.013073]
[1769865503876,0.295966,82969.0,82959.0,0.012072]
[1769865504884,0.295966,82969.0,82962.0,0.012072]
[1769865505085,0.295966,82969.0,82954.0,0.10868]
[1769865507585,0.295966,82969.0,82954.0,0.10968]
[1769865508183,0.295966,82969.0,82954.0,0.40036278]
[1769865509785,0.295966,82969.0,82954.0,0.39936278]
[1769865511287,0.295966,82978.0,82955.0,0.29068278]
[1769865511587,0.295966,82976.0,82955.0,0.29068278]
[1769865511788,0.295966,82974.0,82955.0,0.29068278]
[1769865514091,0.295966,82989.0,82955.0,0.29068278]
[1769865514388,0.295966,82987.0,82955.0,0.29068278]
[1769865514590,0.295966,82985.0,82955.0,0.29068278]
[1769865514793,0.295966,82983.0,82955.0,0.29068278]
[1769865515089,0.295966,82981.0,82955.0,0.29068278]
[1769865515291,0.295966,82969.0,82954.0,0.10868]
[1769865515591,0.295966,82969.0,82955.0,0.10864]
[1769865515794,0.295966,82969.0,82954.0,0.10864]
[1769865521487,0.29931163,82977.0,82954.0,0.10864]
[1769865521696,0.29931163,82975.0,82954.0,0.10864]
[1769865521889,0.29931163,82973.0,82954.0,0.10864]
[1769865522090,0.29931163,82971.0,82954.0,0.10864]
[1769865530502,0.29931163,82969.0,82954.0,0.10864]
[1769865530702,0.29931163,82969.0,82955.0,0.10864]
[1769865532897,0.30031163,82969.0,82955.0,0.10864]
[1769865533504,0.30031163,82969.0,82948.0,0.2868622]
[1769865534002,0.30031163,82969.0,82942.0,0.10864]
[1769865534196,0.30031163,82969.0,82943.0,0.2868622]
[1769865535195,0.29931163,82969.0,82944.0,0.24065511]
[1769865535402,0.23969698,82993.0,82944.0,0.24065511]
[1769865535403,0.29931163,82973.0,82951.0,0.2868622]
[1769865535706,0.83935877,83037.0,82950.0,0.20648192]
[1769865535707,0.29931163,82989.0,82960.0,0.2868622]
[1769865535906,0.10864,82998.0,82952.0,0.78321511]